lending/lending_fUSD_20250429
["ID","MTS","AMOUNT","RATE_DAILY","PERIOD"]
[359338669,1745941853312,-1137.0,0.00027521,2]
[359338670,1745941853321,-545.01,0.00027533,2]
[359338671,1745941853331,-1618.58,0.00027544,16]
[359338672,1745941853341,-150.37,0.00027603,2]
[359338673,1745941853350,-150.647,0.00027603,2]
[359338674,1745941853360,-150.0,0.00027603,2]
[359338675,1745941853369,-150.0,0.00027603,2]
[359338676,1745941853378,-347387.17446159,0.0002762,2]
[359338677,1745941853909,-571.41973568,0.0002762,2]
[359338678,1745941853925,-763.68681665,0.0002762,2]
[359338679,1745941853937,-4710.68782393,0.0002762,2]
[359338680,1745941853952,-904.44999998,0.0002762,2]
[359338682,1745942304110,317.43,0.00036986,60]
[359338683,1745942327427,250.0,0.00017,2]
[359338684,1745942328517,300.0,0.00019,2]
[359338685,1745942333616,-268.63,0.00021,2]
[359338686,1745942337710,-81.37,0.00021,2]
[359338687,1745942337734,-171.41,0.00023899,2]
[359338688,1745942337759,-35.08290169,0.00024413,2]
[359338689,1745942343368,-298.4580729,0.00024413,2]
[359338690,1745942348234,-8.65902541,0.00024413,2]
[359338691,1745942348258,-245.399974,0.00026013,2]
[359338692,1745942348283,-45.94100059,0.00026144,2]
[359338693,1745942353768,-161.45899941,0.00026144,2]
[359338694,1745942353791,-64.94470059,0.0002633,2]
[359338695,1745942357013,-197.65509821,0.0002633,2]
[359338696,1745942361666,-37.4002012,0.0002633,2]
[359338697,1745942361702,-268.22101752,0.00026331,2]
[359338698,1745942367476,-223.36317095,0.00026331,2]
[359338699,1745942370085,-457.99579634,0.00026331,2]
[359338700,1745942373861,-50.42001519,0.00026331,2]
[359338701,1745942373887,-358.84265197,0.00026331,2]
[359338702,1745942380233,-709.26266716,0.00026198,2]
[359338703,1745942386741,-326.54782484,0.00026198,2]
[359338704,1745942395176,-366.50582,0.00026198,2]
[359338705,1745942398298,-300.0,0.00026198,2]
[359338706,1745942401828,-206.94635516,0.00026198,2]
[359338707,1745942407172,-300.0,0.00026198,2]
[359338709,1745942411559,-88.09729184,0.00026198,2]
[359338710,1745942411583,-161.90270816,0.00026304,2]
[359338711,1745942415749,-350.0,0.00026304,2]
[359338712,1745942422369,-117.77744291,0.00026304,2]
[359338713,1745942422395,-32.22255709,0.0002633,2]
[359338714,1745942430561,-150.0,0.0002633,2]
[359338715,1745942453526,-150.0,0.00027,5]
[359338716,1745942454970,150.83,0.00027425,30]
[359338717,1745942460019,-340.12851258,0.00026198,2]
[359338718,1745942464791,-250.0,0.00026198,2]
[359338719,1745942468259,-341.27216806,0.00026198,2]
[359338720,1745942472563,-252.61519864,0.00026198,2]
[359338721,1745942475827,-179.0,0.00026198,2]
[359338722,1745942481257,-201.6850009,0.00026198,2]
[359338723,1745942485628,-453.09990823,0.00026198,2]
[359338724,1745942488821,-186.50630611,0.00026198,2]
[359338725,1745942491916,-150.0,0.00026198,2]
[359338726,1745942686937,1000.0,0.00036986,60]
[359338731,1745943031990,-2430.0877092,0.00025919,2]
[359338734,1745943032001,-949.65489712,0.00025919,2]
[359338736,1745943032013,-288.78272768,0.00025919,2]
[359338738,1745943032022,-207.4,0.0002605,2]
[359338740,1745943032031,-159.0,0.00026099,2]
[359338742,1745943032042,-1018.0,0.00026099,2]
[359338744,1745943032051,-1056.68894142,0.000261,2]
[359338746,1745943032073,-339.17912446,0.000261,2]
[359338747,1745943032084,-58604.13193412,0.000261,2]
[359338748,1745943032094,-169.737325,0.0002623,2]
[359338749,1745943032103,-11296.23734803,0.00026331,2]
[359338750,1745943032112,-250.0,0.00026331,2]
[359338751,1745943032121,-11195.29,0.00026602,2]
[359338752,1745943032131,-342.2,0.00026677,2]
[359338753,1745943032140,-2319.97027699,0.000269,7]
[359338754,1745943032150,-2809.5554,0.000269,2]
[359338755,1745943032160,-4.40073345,0.00027,5]
[359338756,1745943032169,-160.59,0.0002712,2]
[359338757,1745943032179,-1124.041,0.00027297,2]
[359338758,1745943032188,-9999.99456789,0.00027297,2]
[359338759,1745943032198,-500.0,0.00027373,2]
[359338760,1745943032208,-500.0,0.00027373,2]
[359338761,1745943032217,-500.0,0.00027373,2]
[359338762,1745943032226,-500.58869257,0.00027373,2]
[359338763,1745943032236,-500.0,0.00027373,2]
[359338764,1745943032245,-10669.4815907,0.00027387,2]
[359338765,1745943032255,-165.88,0.00027387,2]
[359338766,1745943032264,-165.88,0.00027387,2]
[359338767,1745943032273,-165.88,0.00027387,2]
[359338768,1745943032283,-165.88,0.00027387,2]
[359338769,1745943032293,-165.88,0.00027387,2]
[359338770,1745943032302,-165.88,0.00027387,2]
[359338771,1745943032313,-704.32,0.00027387,2]
[359338772,1745943032322,-151.0,0.00027387,7]
[359338774,1745943032332,-20228.7752877,0.00027387,2]
[359338776,1745943032342,-4252.08428887,0.00027388,2]
[359338781,1745943032385,-1063.44509394,0.00027388,2]
[359338784,1745943032397,-3704.92131263,0.00027388,2]
[359338847,1745943038215,-7162.56953466,0.00027388,2]
[359338848,1745943038226,-245.88,0.00027396,2]
[359338849,1745943038235,-151.0,0.00027397,7]
[359338850,1745943038245,-151.0,0.00027397,7]
[359338851,1745943038256,-151.0,0.00027397,7]
[359338852,1745943038266,-470.0,0.00027397,2]
[359338853,1745943038275,-503.89237923,0.00027397,2]
[359338854,1745943038285,-503.10333559,0.00027397,2]
[359338855,1745943038296,-332.12438938,0.00027397,2]
[359338856,1745943038306,-470.0,0.00027397,2]
[359338857,1745943038315,-163.64299581,0.00027397,2]
[359338858,1745943038325,-470.0,0.00027397,2]
[359338859,1745943038334,-358.86187994,0.00027397,2]
[359338860,1745943038344,-500.42205834,0.00027397,2]
[359338861,1745943038355,-470.0,0.00027397,2]
[359338862,1745943038365,-502.73777972,0.00027397,2]
[359338863,1745943038375,-470.0,0.00027397,2]
[359338864,1745943038385,-470.0,0.00027397,2]
[359338865,1745943038395,-470.0,0.00027397,2]
[359338866,1745943038405,-470.0,0.00027397,2]
[359338867,1745943038416,-420.62620076,0.00027397,2]
[359338868,1745943038425,-470.0,0.00027397,2]
[359338869,1745943038436,-500.6562408,0.00027397,2]
[359338870,1745943038446,-500.0,0.00027397,2]
[359338871,1745943038456,-500.0,0.00027397,2]
[359338873,1745943038466,-505.42537913,0.00027397,2]
[359338876,1745943038476,-489.27322375,0.00027397,2]
[359338878,1745943038485,-504.75436155,0.00027397,2]
[359338880,1745943038495,-503.68924316,0.00027397,2]
[359338881,1745943038504,-561.54220509,0.00027397,2]
[359338882,1745943038514,-470.0,0.00027397,2]
[359338883,1745943038524,-500.0,0.00027397,2]
[359338884,1745943038536,-470.0,0.00027397,2]
[359338885,1745943038549,-470.0,0.00027397,2]
[359338886,1745943038558,-470.0,0.00027397,2]
[359338887,1745943038568,-502.03563394,0.00027397,2]
[359338888,1745943038578,-206.26421775,0.00027397,2]
[359338889,1745943038587,-470.0,0.00027397,2]
[359338890,1745943038596,-470.0,0.00027397,2]
[359338891,1745943038605,-470.0,0.00027397,2]
[359338892,1745943038615,-470.0,0.00027397,2]
[359338893,1745943038627,-470.0,0.00027397,2]
[359338894,1745943038638,-470.0,0.00027397,2]
[359338895,1745943038648,-470.0,0.00027397,2]
[359338896,1745943038662,-470.0,0.00027397,2]
[359338897,1745943038671,-470.0,0.00027397,2]
[359338898,1745943038681,-301.69460847,0.00027397,2]
[359338899,1745943040280,-168.30539153,0.00027397,2]
[359338900,1745943040291,-662.0,0.00027397,2]
[359338901,1745943040301,-470.0,0.00027397,2]
[359338902,1745943040310,-687.92,0.00027397,2]
[359338903,1745943040320,-470.0,0.00027397,2]
[359338904,1745943040330,-470.0,0.00027397,2]
[359338905,1745943040340,-500.0,0.00027397,2]
[359338906,1745943040350,-448.90445602,0.00027397,2]
[359338907,1745943040360,-470.0,0.00027397,2]
[359338908,1745943040369,-470.0,0.00027397,2]
[359338909,1745943040379,-553.12983632,0.00027397,2]
[359338910,1745943040388,-62.55638234,0.00027397,2]
[359338911,1745943040400,-407.44361766,0.00027397,2]
[359338912,1745943040410,-83.65954069,0.00027397,2]
[359338913,1745943040421,-253.1451298,0.00027397,2]
[359338914,1745943040800,-15.66305557,0.00027397,2]
[359338921,1745943040923,-47.53227394,0.00027397,2]
[359338922,1745943040933,-470.0,0.00027397,2]
[359338923,1745943040941,-470.0,0.00027397,2]
[359338924,1745943040951,-136.50873217,0.00027397,2]
[359338925,1745943040973,-333.49126783,0.00027397,2]
[359338926,1745943040982,-470.0,0.00027397,2]
[359338927,1745943040992,-470.0,0.00027397,2]
[359338928,1745943041002,-470.0,0.00027397,2]
[359338929,1745943041011,-470.0,0.00027397,2]
[359338930,1745943041020,-751.73,0.00027397,2]
[359338931,1745943041029,-470.0,0.00027397,2]
[359338932,1745943041039,-573.28,0.00027397,2]
[359338933,1745943041049,-470.0,0.00027397,2]
[359338934,1745943041058,-470.0,0.00027397,2]
[359338935,1745943041068,-67.41889215,0.00027397,2]
[359338937,1745943041080,-217.86981356,0.00027397,2]
[359338939,1745943041089,-470.0,0.00027397,2]
[359338941,1745943041098,-470.0,0.00027397,2]
[359338943,1745943041107,-470.0,0.00027397,2]
[359338944,1745943041116,-470.0,0.00027397,2]
[359338945,1745943041125,-470.0,0.00027397,2]
[359338946,1745943041134,-470.0,0.00027397,2]
[359338947,1745943041144,-470.0,0.00027397,2]
[359338948,1745943041153,-470.0,0.00027397,2]
[359338949,1745943041162,-470.0,0.00027397,2]
[359338950,1745943041172,-470.0,0.00027397,2]
[359338951,1745943041182,-662.37,0.00027397,2]
[359338952,1745943041191,-470.0,0.00027397,2]
[359338953,1745943041200,-470.0,0.00027397,2]
[359338954,1745943041210,-207.36882828,0.00027397,2]
[359338955,1745943041220,-470.0,0.00027397,2]
[359338956,1745943041229,-470.0,0.00027397,2]
[359338957,1745943041239,-852.738819,0.00027397,2]
[359338958,1745943041249,-470.0,0.00027397,2]
[359338959,1745943041258,-529.26,0.00027397,2]
[359338960,1745943041267,-500.0,0.00027397,2]
[359338961,1745943041277,-470.0,0.00027397,2]
[359338962,1745943041286,-544.43896643,0.00027397,2]
[359338963,1745943041296,-470.0,0.00027397,2]
[359338964,1745943041305,-470.0,0.00027397,2]
[359338965,1745943041315,-470.0,0.00027397,2]
[359338966,1745943041326,-470.0,0.00027397,2]
[359338967,1745943041336,-538.7,0.00027397,2]
[359338968,1745943041346,-238.91989958,0.00027397,2]
[359338969,1745943041357,-614.70456916,0.00027397,2]
[359338970,1745943041367,-470.0,0.00027397,2]
[359338971,1745943041377,-530.0,0.00027397,2]
[359338972,1745943041387,-470.0,0.00027397,2]
[359338973,1745943041397,-470.0,0.00027397,2]
[359338974,1745943041407,-530.0,0.00027397,2]
[359338975,1745943041416,-470.0,0.00027397,2]
[359338976,1745943041426,-470.0,0.00027397,2]
[359338977,1745943041435,-470.0,0.00027397,2]
[359338978,1745943041446,-470.0,0.00027397,2]
[359338979,1745943041455,-827.82,0.00027397,2]
[359338980,1745943041465,-472.94664106,0.00027397,2]
[359338981,1745943041474,-470.0,0.00027397,2]
[359338982,1745943041484,-470.0,0.00027397,2]
[359338983,1745943041493,-470.0,0.00027397,2]
[359338984,1745943041502,-470.0,0.00027397,2]
[359338985,1745943041512,-470.0,0.00027397,2]
[359338986,1745943041521,-470.0,0.00027397,2]
[359338987,1745943041530,-470.0,0.00027397,2]
[359338988,1745943041539,-470.0,0.00027397,2]
[359338989,1745943041549,-470.0,0.00027397,2]
[359338990,1745943041558,-470.0,0.00027397,2]
[359338991,1745943041567,-470.0,0.00027397,2]
[359338992,1745943041576,-470.0,0.00027397,2]
[359338993,1745943041594,-470.0,0.00027397,2]
[359338994,1745943041605,-470.0,0.00027397,2]
[359338995,1745943041615,-470.0,0.00027397,2]
[359338996,1745943041625,-470.0,0.00027397,2]
[359338997,1745943041636,-470.0,0.00027397,2]
[359338998,1745943041647,-470.0,0.00027397,2]
[359338999,1745943041659,-470.0,0.00027397,2]
[359339000,1745943041670,-470.0,0.00027397,2]
[359339001,1745943041680,-470.0,0.00027397,2]
[359339002,1745943041690,-470.0,0.00027397,2]
[359339003,1745943041699,-689.52,0.00027397,2]
[359339004,1745943041709,-647.76,0.00027397,2]
[359339005,1745943041718,-693.76,0.00027397,2]
[359339006,1745943041729,-635.55,0.00027397,2]
[359339007,1745943041739,-470.0,0.00027397,2]
[359339008,1745943041748,-470.0,0.00027397,2]
[359339009,1745943041760,-470.0,0.00027397,2]
[359339010,1745943041769,-648.89,0.00027397,2]
[359339011,1745943041779,-689.96,0.00027397,2]
[359339012,1745943041788,-562.13,0.00027397,2]
[359339013,1745943041798,-470.0,0.00027397,2]
[359339014,1745943041807,-470.0,0.00027397,2]
[359339015,1745943041817,-470.0,0.00027397,2]
[359339016,1745943041827,-611.72479218,0.00027397,2]
[359339017,1745943041837,-470.0,0.00027397,2]
[359339018,1745943041846,-260.0,0.00027397,2]
[359339019,1745943041856,-470.0,0.00027397,2]
[359339020,1745943041866,-470.0,0.00027397,2]
[359339021,1745943041876,-921.89,0.00027397,2]
[359339022,1745943041885,-470.0,0.00027397,2]
[359339023,1745943041895,-470.0,0.00027397,2]
[359339024,1745943041904,-471.35,0.00027397,2]
[359339025,1745943041919,-470.0,0.00027397,2]
[359339026,1745943041929,-470.0,0.00027397,2]
[359339027,1745943041938,-470.0,0.00027397,2]
[359339028,1745943041950,-470.0,0.00027397,2]
[359339029,1745943041960,-470.0,0.00027397,2]
[359339030,1745943041970,-780.06,0.00027397,2]
[359339031,1745943041980,-470.0,0.00027397,2]
[359339032,1745943041990,-1016.66,0.00027397,2]
[359339033,1745943042000,-721.89,0.00027397,2]
[359339034,1745943042009,-470.0,0.00027397,2]
[359339035,1745943042019,-1374.91,0.00027397,2]
[359339036,1745943042028,-563.48,0.00027397,2]
[359339037,1745943042038,-470.0,0.00027397,2]
[359339038,1745943042048,-717.24,0.00027397,2]
[359339039,1745943042059,-562.21,0.00027397,2]
[359339040,1745943042069,-470.0,0.00027397,2]
[359339041,1745943042079,-470.0,0.00027397,2]
[359339042,1745943042088,-250.0,0.00027397,2]
[359339043,1745943042099,-470.0,0.00027397,2]
[359339044,1745943042109,-368.02539225,0.00027397,2]
[359339045,1745943042119,-532.04,0.00027397,2]
[359339046,1745943042129,-470.0,0.00027397,2]
[359339047,1745943042139,-470.0,0.00027397,2]
[359339048,1745943042149,-528.67750588,0.00027397,2]
[359339049,1745943042160,-470.0,0.00027397,2]
[359339050,1745943042170,-470.0,0.00027397,2]
[359339051,1745943042180,-300.0,0.00027397,2]
[359339052,1745943042190,-470.0,0.00027397,2]
[359339053,1745943042200,-470.0,0.00027397,2]
[359339054,1745943042209,-470.0,0.00027397,2]
[359339055,1745943042219,-470.0,0.00027397,2]
[359339056,1745943042229,-551.97,0.00027397,2]
[359339057,1745943042239,-675.61,0.00027397,2]
[359339058,1745943042248,-470.0,0.00027397,2]
[359339059,1745943042258,-517.27,0.00027397,2]
[359339060,1745943042268,-470.0,0.00027397,2]
[359339061,1745943042277,-416.95132453,0.00027397,2]
[359339062,1745943042287,-470.0,0.00027397,2]
[359339063,1745943042297,-217.91232564,0.00027397,2]
[359339064,1745943042307,-470.0,0.00027397,2]
[359339065,1745943042316,-470.0,0.00027397,2]
[359339066,1745943042326,-470.0,0.00027397,2]
[359339067,1745943042336,-554.95,0.00027397,2]
[359339068,1745943042345,-470.0,0.00027397,2]
[359339069,1745943042355,-470.0,0.00027397,2]
[359339070,1745943042364,-477.57,0.00027397,2]
[359339071,1745943042374,-470.0,0.00027397,2]
[359339072,1745943042384,-470.0,0.00027397,2]
[359339073,1745943042394,-470.0,0.00027397,2]
[359339074,1745943042405,-606.11,0.00027397,2]
[359339075,1745943042416,-586.42493179,0.00027397,2]
[359339076,1745943042427,-470.0,0.00027397,2]
[359339077,1745943042437,-508.5,0.00027397,2]
[359339078,1745943042448,-470.0,0.00027397,2]
[359339079,1745943042458,-470.0,0.00027397,2]
[359339080,1745943042469,-557.33,0.00027397,2]
[359339081,1745943042481,-470.0,0.00027397,2]
[359339082,1745943042491,-470.0,0.00027397,2]
[359339083,1745943042501,-470.0,0.00027397,2]
[359339084,1745943042511,-470.0,0.00027397,2]
[359339085,1745943042520,-470.0,0.00027397,2]
[359339086,1745943042530,-470.0,0.00027397,2]
[359339087,1745943042775,-470.0,0.00027397,2]
[359339088,1745943042785,-470.0,0.00027397,2]
[359339089,1745943042795,-470.0,0.00027397,2]
[359339090,1745943042805,-470.0,0.00027397,2]
[359339091,1745943042815,-470.0,0.00027397,2]
[359339092,1745943042824,-470.0,0.00027397,2]
[359339093,1745943042834,-500.0,0.00027397,2]
[359339094,1745943042845,-470.0,0.00027397,2]
[359339095,1745943042855,-470.0,0.00027397,2]
[359339096,1745943042865,-470.0,0.00027397,2]
[359339097,1745943042875,-485.97,0.00027397,2]
[359339098,1745943042885,-470.0,0.00027397,2]
[359339099,1745943042895,-1122.69,0.00027397,2]
[359339100,1745943042904,-470.0,0.00027397,2]
[359339101,1745943042919,-470.0,0.00027397,2]
[359339102,1745943042928,-470.0,0.00027397,2]
[359339103,1745943042938,-470.0,0.00027397,2]
[359339104,1745943042947,-596.14,0.00027397,2]
[359339105,1745943042956,-470.0,0.00027397,2]
[359339106,1745943042965,-650.68,0.00027397,2]
[359339107,1745943042975,-1026.05,0.00027397,2]
[359339108,1745943042984,-395.03608953,0.00027397,2]
[359339112,1745943044424,-74.96391047,0.00027397,2]
[359339114,1745943044435,-500.0,0.00027397,2]
[359339116,1745943044445,-225.86046239,0.00027397,2]
[359339125,1745943044519,-244.13953761,0.00027397,2]
[359339127,1745943044529,-680.59,0.00027397,2]
[359339129,1745943044540,-488.56,0.00027397,2]
[359339131,1745943044550,-552.79,0.00027397,2]
[359339133,1745943044560,-470.0,0.00027397,2]
[359339135,1745943044569,-470.0,0.00027397,2]
[359339137,1745943044579,-826.63,0.00027397,2]
[359339139,1745943044589,-470.0,0.00027397,2]
[359339141,1745943044598,-470.0,0.00027397,2]
[359339143,1745943044608,-728.17,0.00027397,2]
[359339145,1745943044617,-1007.73,0.00027397,2]
[359339146,1745943044627,-470.0,0.00027397,2]
[359339147,1745943044636,-776.14,0.00027397,2]
[359339148,1745943044646,-470.0,0.00027397,2]
[359339149,1745943044655,-470.0,0.00027397,2]
[359339150,1745943044665,-470.0,0.00027397,2]
[359339151,1745943044675,-699.98,0.00027397,2]
[359339152,1745943044684,-470.0,0.00027397,2]
[359339153,1745943044693,-501.95,0.00027397,2]
[359339154,1745943044703,-553.2582789,0.00027397,2]
[359339155,1745943044712,-470.0,0.00027397,2]
[359339156,1745943044723,-470.0,0.00027397,2]
[359339157,1745943044732,-470.0,0.00027397,2]
[359339158,1745943044743,-470.0,0.00027397,2]
[359339159,1745943044754,-529.83,0.00027397,2]
[359339160,1745943044764,-470.0,0.00027397,2]
[359339161,1745943044774,-470.0,0.00027397,2]
[359339162,1745943044783,-500.0,0.00027397,2]
[359339163,1745943044792,-500.0,0.00027397,2]
[359339164,1745943044802,-500.0,0.00027397,2]
[359339165,1745943044811,-500.0,0.00027397,2]
[359339166,1745943044820,-470.0,0.00027397,2]
[359339167,1745943044830,-500.0,0.00027397,2]
[359339168,1745943044840,-470.0,0.00027397,2]
[359339169,1745943044849,-470.0,0.00027397,2]
[359339170,1745943044859,-470.0,0.00027397,2]
[359339171,1745943044869,-470.0,0.00027397,2]
[359339172,1745943044878,-470.0,0.00027397,2]
[359339173,1745943044888,-470.0,0.00027397,2]
[359339174,1745943044897,-470.0,0.00027397,2]
[359339175,1745943044907,-470.0,0.00027397,2]
[359339176,1745943044920,-470.0,0.00027397,2]
[359339177,1745943044930,-470.0,0.00027397,2]
[359339178,1745943044939,-2115.25,0.00027397,2]
[359339179,1745943044948,-470.0,0.00027397,2]
[359339180,1745943044958,-235.32712806,0.00027397,2]
[359339181,1745943044968,-470.0,0.00027397,2]
[359339182,1745943044977,-470.0,0.00027397,2]
[359339183,1745943044987,-470.0,0.00027397,2]
[359339185,1745943044996,-470.0,0.00027397,2]
[359339188,1745943045006,-470.0,0.00027397,2]
[359339190,1745943045015,-470.0,0.00027397,2]
[359339192,1745943045024,-470.0,0.00027397,2]
[359339194,1745943045033,-776.97,0.00027397,2]
[359339196,1745943045042,-735.52,0.00027397,2]
[359339198,1745943045051,-470.0,0.00027397,2]
[359339199,1745943045060,-711.7,0.00027397,2]
[359339201,1745943045070,-470.0,0.00027397,2]
[359339203,1745943045079,-470.0,0.00027397,2]
[359339205,1745943045088,-470.0,0.00027397,2]
[359339206,1745943045097,-470.0,0.00027397,2]
[359339207,1745943045107,-470.0,0.00027397,2]
[359339208,1745943045116,-470.0,0.00027397,2]
[359339209,1745943045125,-470.0,0.00027397,2]
[359339210,1745943045135,-470.0,0.00027397,2]
[359339211,1745943045144,-470.0,0.00027397,2]
[359339212,1745943045153,-470.0,0.00027397,2]
[359339213,1745943045163,-920.29,0.00027397,2]
[359339214,1745943045172,-470.0,0.00027397,2]
[359339215,1745943045181,-257.83408972,0.00027397,2]
[359339216,1745943045191,-470.0,0.00027397,2]
[359339217,1745943045201,-599.92,0.00027397,2]
[359339218,1745943045211,-470.0,0.00027397,2]
[359339219,1745943045220,-470.0,0.00027397,2]
[359339220,1745943045230,-4595.48,0.00027397,2]
[359339221,1745943045239,-470.0,0.00027397,2]
[359339222,1745943045248,-470.0,0.00027397,2]
[359339223,1745943045258,-765.83,0.00027397,2]
[359339224,1745943045267,-470.0,0.00027397,2]
[359339225,1745943045276,-470.0,0.00027397,2]
[359339226,1745943045286,-470.0,0.00027397,2]
[359339227,1745943045295,-470.0,0.00027397,2]
[359339228,1745943045305,-261.70344779,0.00027397,2]
[359339229,1745943045315,-534.33782813,0.00027397,2]
[359339230,1745943045324,-470.0,0.00027397,2]
[359339231,1745943045333,-470.0,0.00027397,2]
[359339232,1745943045343,-653.24,0.00027397,2]
[359339233,1745943045352,-516.06,0.00027397,2]
[359339234,1745943045362,-533.7,0.00027397,2]
[359339235,1745943045371,-470.0,0.00027397,2]
[359339236,1745943045381,-470.0,0.00027397,2]
[359339237,1745943045391,-923.64,0.00027397,2]
[359339238,1745943045400,-470.0,0.00027397,2]
[359339239,1745943045411,-530.0,0.00027397,2]
[359339240,1745943045421,-740.13,0.00027397,2]
[359339241,1745943045430,-470.0,0.00027397,2]
[359339242,1745943045439,-470.0,0.00027397,2]
[359339243,1745943045449,-648.99,0.00027397,2]
[359339244,1745943045458,-470.0,0.00027397,2]
[359339245,1745943045468,-330.57855105,0.00027397,2]
[359339246,1745943045478,-470.0,0.00027397,2]
[359339247,1745943045487,-746.85,0.00027397,2]
[359339248,1745943045496,-546.54832499,0.00027397,2]
[359339249,1745943045506,-870.79,0.00027397,2]
[359339250,1745943045515,-470.0,0.00027397,2]
[359339251,1745943045524,-572.1,0.00027397,2]
[359339252,1745943045533,-470.0,0.00027397,2]
[359339253,1745943045542,-482.18,0.00027397,2]
[359339254,1745943045552,-470.0,0.00027397,2]
[359339255,1745943045562,-470.0,0.00027397,2]
[359339256,1745943045571,-697.03,0.00027397,2]
[359339257,1745943045580,-470.0,0.00027397,2]
[359339258,1745943045590,-508.51214506,0.00027397,2]
[359339259,1745943045600,-470.0,0.00027397,2]
[359339260,1745943045609,-527.42,0.00027397,2]
[359339261,1745943045619,-500.0,0.00027397,2]
[359339262,1745943045628,-470.0,0.00027397,2]
[359339263,1745943045637,-470.0,0.00027397,2]
[359339264,1745943045647,-470.0,0.00027397,2]
[359339265,1745943045656,-470.0,0.00027397,2]
[359339266,1745943045666,-470.0,0.00027397,2]
[359339267,1745943045676,-734.34,0.00027397,2]
[359339268,1745943045685,-470.0,0.00027397,2]
[359339269,1745943045694,-500.0,0.00027397,2]
[359339270,1745943045703,-470.0,0.00027397,2]
[359339271,1745943045713,-720.11,0.00027397,2]
[359339272,1745943045722,-470.0,0.00027397,2]
[359339273,1745943045732,-470.0,0.00027397,2]
[359339274,1745943045741,-470.0,0.00027397,2]
[359339275,1745943045749,-470.0,0.00027397,2]
[359339276,1745943045757,-470.0,0.00027397,2]
[359339277,1745943045765,-470.0,0.00027397,2]
[359339278,1745943045774,-470.0,0.00027397,2]
[359339279,1745943045783,-506.69,0.00027397,2]
[359339280,1745943045792,-470.0,0.00027397,2]
[359339281,1745943045800,-470.0,0.00027397,2]
[359339282,1745943045810,-470.0,0.00027397,2]
[359339283,1745943045819,-470.0,0.00027397,2]
[359339284,1745943045827,-470.0,0.00027397,2]
[359339285,1745943045836,-470.0,0.00027397,2]
[359339286,1745943045846,-629.65,0.00027397,2]
[359339287,1745943045855,-2000.0,0.00027397,2]
[359339288,1745943045865,-470.0,0.00027397,2]
[359339289,1745943045874,-560.1,0.00027397,2]
[359339290,1745943045883,-400.0,0.00027397,2]
[359339291,1745943045894,-470.0,0.00027397,2]
[359339292,1745943045904,-470.0,0.00027397,2]
[359339293,1745943045919,-470.0,0.00027397,2]
[359339295,1745943045930,-444.16262197,0.00027397,2]
[359339296,1745943045940,-470.0,0.00027397,2]
[359339297,1745943045951,-470.0,0.00027397,2]
[359339298,1745943045962,-530.0,0.00027397,2]
[359339299,1745943045972,-447.64866465,0.00027397,2]
[359339300,1745943045982,-470.0,0.00027397,2]
[359339301,1745943045991,-470.0,0.00027397,2]
[359339302,1745943046001,-274.17554135,0.00027397,2]